fUST/lending_fUST_20240518
["ID","MTS","AMOUNT","RATE_DAILY","PERIOD"]
[327346571,1716001841473,-160.13523699,0.00016438,2]
[327346572,1716001841482,-503.41110516,0.00016438,2]
[327346573,1716001841492,-500.21504838,0.00016438,2]
[327346574,1716001841501,-648.32191241,0.00016438,2]
[327346575,1716001841511,-507.61820977,0.00016438,2]
[327346576,1716001841519,-504.00958737,0.00016438,2]
[327346577,1716001841529,-500.0,0.00016438,2]
[327346578,1716001841538,-500.60321915,0.00016438,2]
[327346579,1716001841547,-565.2586462,0.00016438,2]
[327346580,1716001841556,-501.0762932,0.00016438,2]
[327346581,1716001841565,-496.02079325,0.00016438,2]
[327346582,1716001841575,-188.12688385,0.00016438,2]
[327346583,1716001841584,-500.28783267,0.00016438,2]
[327346584,1716001841593,-505.06299649,0.00016438,2]
[327346585,1716001841602,-501.38530356,0.00016438,2]
[327346586,1716001841612,-500.95129566,0.00016438,2]
[327346587,1716001841622,-500.0,0.00016438,2]
[327346588,1716001841632,-608.56001064,0.00016438,2]
[327346589,1716001841641,-502.05997126,0.00016438,2]
[327346590,1716001841650,-502.21384019,0.00016438,2]
[327346591,1716001841659,-501.72219746,0.00016438,2]
[327346592,1716001841669,-500.0,0.00016438,2]
[327346593,1716001841679,-500.0,0.00016438,2]
[327346594,1716001841688,-502.14392903,0.00016438,2]
[327346595,1716001841700,-500.0,0.00016438,2]
[327346596,1716001841709,-513.2078559,0.00016438,2]
[327346597,1716001841718,-500.0,0.00016438,2]
[327346598,1716001841727,-514.64243649,0.00016438,2]
[327346599,1716001841737,-507.7976675,0.00016438,2]
[327346600,1716001841746,-512.00502879,0.00016438,2]
[327346601,1716001841755,-500.0,0.00016438,2]
[327346602,1716001841764,-500.0,0.00016438,2]
[327346603,1716001841774,-500.0,0.00016438,2]
[327346604,1716001841783,-500.0,0.00016438,2]
[327346605,1716001841793,-500.0,0.00016438,2]
[327346606,1716001841802,-527.05136394,0.00016438,2]
[327346607,1716001841811,-623.82920468,0.00016438,2]
[327346608,1716001841820,-503.49732163,0.00016438,2]
[327346609,1716001841830,-503.50385804,0.00016438,2]
[327346610,1716001841841,-500.0,0.00016438,2]
[327346611,1716001841851,-504.02582672,0.00016438,2]
[327346612,1716001841861,-514.71251152,0.00016438,2]
[327346613,1716001841870,-500.0,0.00016438,2]
[327346614,1716001841879,-497.78888575,0.00016438,2]
[327346615,1716001841888,-502.17281274,0.00016438,2]
[327346616,1716001841897,-501.6171212,0.00016438,2]
[327346617,1716001841907,-508.72561443,0.00016438,2]
[327346618,1716001841916,-505.15356841,0.00016438,2]
[327346619,1716001841925,-505.19323275,0.00016438,2]
[327346620,1716001841935,-500.97931386,0.00016438,2]
[327346621,1716001841944,-500.0,0.00016438,2]
[327346622,1716001841954,-511.21175295,0.00016438,2]
[327346623,1716001841963,-505.25175662,0.00016438,2]
[327346624,1716001841972,-513.49713772,0.00016438,2]
[327346625,1716001841981,-367.72858408,0.00016438,2]
[327346626,1716001841990,-505.46397718,0.00016438,2]
[327346627,1716001842000,-491.21178867,0.00016438,2]
[327346628,1716001842009,-500.0,0.00016438,2]
[327346629,1716001842018,-230.495479,0.00016438,2]
[327346630,1716001842028,-501.6085611,0.00016438,2]
[327346631,1716001842037,-506.52770784,0.00016438,2]
[327346632,1716001842046,-151.0,0.00016438,2]
[327346633,1716001842056,-500.0,0.00016438,2]
[327346634,1716001842065,-4188.03,0.00016438,2]
[327346635,1716001842075,-500.0,0.00016438,2]
[327346636,1716001842084,-500.0,0.00016438,2]
[327346637,1716001842093,-500.0,0.00016438,2]
[327346638,1716001842102,-601.9814888,0.00016438,2]
[327346639,1716001842112,-151.0,0.00016438,2]
[327346640,1716001842233,-501.15607277,0.00016438,2]
[327346641,1716001842244,-500.0,0.00016438,2]
[327346642,1716001842255,-500.0,0.00016438,2]
[327346643,1716001842265,-504.56600843,0.00016438,2]
[327346644,1716001842275,-500.0,0.00016438,2]
[327346645,1716001842284,-500.0,0.00016438,2]
[327346646,1716001842293,-166.773211,0.00016438,2]
[327346647,1716001842303,-5652.97,0.00016438,2]
[327346648,1716001842311,-509.02999421,0.00016438,2]
[327346649,1716001842320,-500.0,0.00016438,2]
[327346650,1716001842330,-2310.72,0.00016438,2]
[327346651,1716001842340,-24540.07,0.00016438,2]
[327346652,1716001842349,-166.773211,0.00016438,2]
[327346653,1716001842358,-506.23635785,0.00016438,2]
[327346654,1716001842367,-501.20631385,0.00016438,2]
[327346655,1716001842377,-500.0,0.00016438,2]
[327346656,1716001842386,-500.0,0.00016438,2]
[327346657,1716001842395,-506.53639279,0.00016438,2]
[327346658,1716001842404,-3648.35,0.00016438,2]
[327346659,1716001842413,-500.0,0.00016438,2]
[327346660,1716001842431,-500.0,0.00016438,2]
[327346661,1716001842446,-500.0,0.00016438,2]
[327346662,1716001842456,-504.26717806,0.00016438,2]
[327346663,1716001842466,-501.00130243,0.00016438,2]
[327346664,1716001842476,-500.0,0.00016438,2]
[327346665,1716001842486,-503.90597654,0.00016438,2]
[327346666,1716001842496,-500.0,0.00016438,2]
[327346667,1716001842506,-500.0,0.00016438,2]
[327346668,1716001842516,-202.19377583,0.00016438,2]
[327346669,1716001842525,-151.0,0.00016438,2]
[327346670,1716001842535,-500.0,0.00016438,2]
[327346671,1716001842545,-1213.37,0.00016438,2]
[327346672,1716001842554,-283.098274,0.00016438,2]
[327346673,1716001842564,-421.92052304,0.00016438,2]
[327346725,1716001920243,500.0,0.00016438,4]
[327346726,1716002810718,500.0,0.00016438,4]
[327346727,1716002825170,-9204.34202882,0.00010957,2]
[327346728,1716002837192,-9184.09622678,0.00010957,2]
[327346729,1716002851099,-570.95645346,0.00010957,2]
[327346733,1716002948199,-2234.13767073,0.00010957,2]
[327346734,1716002948411,-6155.18005461,0.00010958,2]
[327346735,1716002948435,-783.19,0.00010959,2]
[327346736,1716002948456,-311.40765475,0.00011571,2]
[327346737,1716002948483,-1780.4706846,0.00012412,2]
[327346738,1716002953117,-10893.3026814,0.00012412,2]
[327346739,1716002953139,-521.652285,0.00013699,2]
[327346740,1716002953161,-1084.51092601,0.000138,2]
[327346749,1716003032916,-189.5809831,0.000148,2]
[327346750,1716003032926,-454.05214751,0.000149,2]
[327346751,1716003032935,-942.53705457,0.00015,2]
[327346752,1716003032944,-2400.65057528,0.00015,2]
[327346753,1716003032954,-7100.90113281,0.00015,2]
[327346754,1716003032963,-1149.07076386,0.00015,2]
[327346755,1716003032972,-80000.0,0.00015,2]
[327346756,1716003032981,-2795.92824354,0.00015,2]
[327346757,1716003032990,-2107.5414282,0.00015,2]
[327346758,1716003033000,-454.05214749,0.00015303,2]
[327346759,1716003033010,-2119.07678351,0.00015425,2]
[327346760,1716003033019,-492.79282332,0.00015428,2]
[327346761,1716003033029,-213.84088782,0.00015428,2]
[327346762,1716003033038,-155.09776591,0.00015429,2]
[327346763,1716003033048,-1683.4698518,0.00015429,2]
[327346764,1716003033057,-454.05214749,0.00015706,2]
[327346765,1716003033068,-7967.64444353,0.00016,2]
[327346766,1716003033077,-3095.46719057,0.00016,2]
[327346792,1716003039977,-1924.34649265,0.00016,2]
[327346793,1716003039988,-454.05214749,0.00016109,2]
[327346795,1716003039998,-460.9,0.00016284,2]
[327346797,1716003040008,-460.9,0.00016284,3]
[327346798,1716003040018,-417.06273246,0.00016337,2]
[327346799,1716003040028,-3346.1683299,0.00016338,2]
[327346800,1716003040038,-2000.0,0.00016338,2]
[327346801,1716003040049,-41393.87374039,0.00016338,2]
[327346802,1716003040059,-4222.10020806,0.00016403,2]
[327346803,1716003040069,-298.6473869,0.00016432,2]
[327346804,1716003040079,-155.16954056,0.00016432,2]
[327346805,1716003040089,-5364.94294758,0.00016438,3]
[327346806,1716003040099,-496.02079325,0.00016438,2]
[327346807,1716003040108,-503.58629594,0.00016438,2]
[327346808,1716003040118,-500.0,0.00016438,2]
[327346809,1716003040128,-497.09165265,0.00016438,2]
[327346810,1716003040139,-502.19025893,0.00016438,2]
[327346811,1716003040148,-502.19920621,0.00016438,2]
[327346812,1716003040159,-501.63514118,0.00016438,2]
[327346813,1716003040169,-502.03869105,0.00016438,2]
[327346814,1716003040180,-500.80389508,0.00016438,2]
[327346815,1716003040191,-500.0,0.00016438,2]
[327346816,1716003040202,-502.21155139,0.00016438,2]
[327346817,1716003040212,-598.61881444,0.00016438,2]
[327346818,1716003040222,-501.67118055,0.00016438,2]
[327346819,1716003040232,-501.8025543,0.00016438,2]
[327346820,1716003040242,-506.23851799,0.00016438,2]
[327346821,1716003040251,-501.50186471,0.00016438,2]
[327346822,1716003040261,-269.00562539,0.00016438,2]
[327346823,1716003040271,-502.59145835,0.00016438,2]
[327346824,1716003040282,-501.25576528,0.00016438,2]
[327346825,1716003040292,-501.27242285,0.00016438,2]
[327346826,1716003040302,-501.3686807,0.00016438,2]
[327346827,1716003040313,-500.0,0.00016438,2]
[327346828,1716003040323,-502.97511639,0.00016438,2]
[327346829,1716003040334,-502.40917785,0.00016438,2]
[327346830,1716003040344,-509.49216685,0.00016438,2]
[327346831,1716003040354,-500.0,0.00016438,2]
[327346832,1716003040364,-500.0,0.00016438,2]
[327346833,1716003040374,-501.92717773,0.00016438,2]
[327346835,1716003040383,-504.13869779,0.00016438,2]
[327346836,1716003040394,-502.15095282,0.00016438,2]
[327346837,1716003040404,-500.73076359,0.00016438,2]
[327346838,1716003040414,-501.73833322,0.00016438,2]
[327346839,1716003040424,-501.97624276,0.00016438,2]
[327346840,1716003040435,-510.1134858,0.00016438,2]
[327346841,1716003040444,-503.48114508,0.00016438,2]
[327346842,1716003040456,-502.47710006,0.00016438,2]
[327346843,1716003040466,-502.37017628,0.00016438,2]
[327346844,1716003040477,-503.92729263,0.00016438,2]
[327346845,1716003040494,-507.76393073,0.00016438,2]
[327346846,1716003040504,-501.73481911,0.00016438,2]
[327346847,1716003040515,-503.41415471,0.00016438,2]
[327346848,1716003040526,-502.89071705,0.00016438,2]
[327346849,1716003040537,-501.32013921,0.00016438,2]
[327346850,1716003040547,-504.77630118,0.00016438,2]
[327346851,1716003040558,-519.14313656,0.00016438,2]
[327346852,1716003040568,-500.72470488,0.00016438,2]
[327346853,1716003040578,-506.60546792,0.00016438,2]
[327346854,1716003040588,-501.87634161,0.00016438,2]
[327346855,1716003040598,-504.91874709,0.00016438,2]
[327346856,1716003040609,-158.80837085,0.00016438,2]
[327346857,1716003040620,-500.0,0.00016438,2]
[327346858,1716003040631,-207.31789753,0.00016438,2]
[327346859,1716003040642,-502.21349185,0.00016438,2]
[327346860,1716003040652,-501.93659509,0.00016438,2]
[327346861,1716003040662,-501.87578921,0.00016438,2]
[327346862,1716003040672,-160.13523699,0.00016438,2]
[327346863,1716003040682,-502.43960808,0.00016438,2]
[327346864,1716003040691,-503.11489218,0.00016438,2]
[327346865,1716003040701,-514.7139242,0.00016438,2]
[327346867,1716003040711,-507.09461867,0.00016438,2]
[327346869,1716003040720,-500.21504838,0.00016438,2]
[327346870,1716003040730,-503.41110516,0.00016438,2]
[327346872,1716003040740,-648.32191241,0.00016438,2]
[327346873,1716003040749,-505.06299649,0.00016438,2]
[327346875,1716003040759,-507.61820977,0.00016438,2]
[327346876,1716003040768,-500.60321915,0.00016438,2]
[327346877,1716003040778,-504.00958737,0.00016438,2]
[327346878,1716003040788,-501.0762932,0.00016438,2]
[327346879,1716003040798,-188.12688385,0.00016438,2]
[327346880,1716003040808,-500.28783267,0.00016438,2]
[327346881,1716003040818,-500.95129566,0.00016438,2]
[327346882,1716003040828,-501.38530356,0.00016438,2]
[327346883,1716003040844,-623.82920468,0.00016438,2]
[327346884,1716003040854,-503.50385804,0.00016438,2]
[327346885,1716003040863,-608.56001064,0.00016438,2]
[327346886,1716003040874,-501.72219746,0.00016438,2]
[327346887,1716003040884,-502.05997126,0.00016438,2]
[327346888,1716003040893,-500.0,0.00016438,2]
[327346889,1716003040903,-502.21384019,0.00016438,2]
[327346890,1716003040912,-500.0,0.00016438,2]
[327346891,1716003040922,-502.14392903,0.00016438,2]
[327346892,1716003040931,-513.2078559,0.00016438,2]
[327346893,1716003040942,-500.0,0.00016438,2]
[327346894,1716003040952,-503.49732163,0.00016438,2]
[327346895,1716003040962,-501.6171212,0.00016438,2]
[327346896,1716003040972,-507.7976675,0.00016438,2]
[327346897,1716003040982,-500.0,0.00016438,2]
[327346898,1716003040992,-500.0,0.00016438,2]
[327346899,1716003041002,-500.0,0.00016438,2]
[327346900,1716003041023,-500.0,0.00016438,2]
[327346901,1716003041035,-500.0,0.00016438,2]
[327346903,1716003041046,-504.02582672,0.00016438,2]
[327346904,1716003041057,-500.0,0.00016438,2]
[327346906,1716003041068,-514.71251152,0.00016438,2]
[327346908,1716003041078,-500.0,0.00016438,2]
[327346910,1716003041088,-497.78888575,0.00016438,2]
[327346912,1716003041099,-502.17281274,0.00016438,2]
[327346913,1716003041109,-500.0,0.00016438,2]
[327346914,1716003041120,-500.97931386,0.00016438,2]
[327346915,1716003041130,-505.15356841,0.00016438,2]
[327346916,1716003041140,-500.0,0.00016438,2]
[327346917,1716003041151,-500.0,0.00016438,2]
[327346918,1716003041161,-500.68248343,0.00016438,2]
[327346919,1716003041171,-625.72210853,0.00016438,2]
[327346920,1716003041181,-367.72858408,0.00016438,2]
[327346921,1716003041190,-500.0,0.00016438,2]
[327346922,1716003041201,-281.55010882,0.00016438,2]
[327346923,1716003041212,-500.0,0.00016438,2]
[327346924,1716003041223,-500.0,0.00016438,2]
[327346925,1716003041233,-507.28998199,0.00016438,2]
[327346926,1716003041243,-601.9814888,0.00016438,2]
[327346927,1716003041254,-500.0,0.00016438,2]
[327346928,1716003041264,-506.42159147,0.00016438,2]
[327346929,1716003041274,-564.53432852,0.00016438,2]
[327346930,1716003041285,-500.0,0.00016438,2]
[327346931,1716003041295,-500.0,0.00016438,2]
[327346932,1716003041306,-514.57669617,0.00016438,2]
[327346933,1716003041316,-202.19377583,0.00016438,2]
[327346934,1716003041326,-500.0,0.00016438,2]
[327346935,1716003041336,-503.77447616,0.00016438,2]
[327346936,1716003041346,-500.0,0.00016438,2]
[327346937,1716003041356,-500.0,0.00016438,2]
[327346938,1716003041366,-505.90325461,0.00016438,2]
[327346939,1716003041376,-500.0,0.00016438,2]
[327346940,1716003041386,-505.65154867,0.00016438,2]
[327346941,1716003041396,-523.00134358,0.00016438,2]
[327346942,1716003041406,-568.43379303,0.00016438,2]
[327346943,1716003041416,-503.56471971,0.00016438,2]
[327346944,1716003041426,-505.15317079,0.00016438,2]
[327346945,1716003041436,-500.0,0.00016438,2]
[327346946,1716003041445,-507.21335429,0.00016438,2]
[327346947,1716003041457,-514.64272281,0.00016438,2]
[327346948,1716003041467,-565.2586462,0.00016438,2]
[327346949,1716003041477,-500.0,0.00016438,2]
[327346950,1716003041488,-514.64243649,0.00016438,2]
[327346951,1716003041500,-500.0,0.00016438,2]
[327346952,1716003041510,-500.0,0.00016438,2]
[327346953,1716003041520,-500.0,0.00016438,2]
[327346954,1716003041530,-508.72561443,0.00016438,2]
[327346955,1716003041541,-505.19323275,0.00016438,2]
[327346956,1716003041553,-500.0,0.00016438,2]
[327346957,1716003041564,-511.21175295,0.00016438,2]
[327346958,1716003041575,-505.25175662,0.00016438,2]
[327346959,1716003041585,-505.46397718,0.00016438,2]
[327346960,1716003041595,-509.93420702,0.00016438,2]
[327346961,1716003041605,-491.21178867,0.00016438,2]
[327346962,1716003041615,-500.0,0.00016438,2]
[327346963,1716003041624,-500.0,0.00016438,2]
[327346964,1716003041634,-506.52770784,0.00016438,2]
[327346965,1716003041645,-563.87,0.00016438,2]
[327346966,1716003041654,-500.0,0.00016438,2]
[327346967,1716003041664,-513.49713772,0.00016438,2]
[327346968,1716003041674,-500.0,0.00016438,2]
[327346969,1716003041683,-500.0,0.00016438,2]
[327346970,1716003041694,-640.16,0.00016438,2]
[327346971,1716003041706,-640.16,0.00016438,2]
[327346972,1716003041717,-640.16,0.00016438,2]
[327346973,1716003041727,-640.16,0.00016438,2]
[327346974,1716003041914,-640.16,0.00016438,2]
[327346975,1716003041925,-640.16,0.00016438,2]
[327346976,1716003041935,-640.16,0.00016438,2]
[327346977,1716003041945,-500.0,0.00016438,2]
[327346978,1716003041956,-640.16,0.00016438,2]
[327346979,1716003041966,-501.15607277,0.00016438,2]
[327346980,1716003041975,-511.70366749,0.00016438,2]
[327346981,1716003041985,-504.56600843,0.00016438,2]
[327346982,1716003041995,-4188.03,0.00016438,2]
[327346983,1716003042005,-500.0,0.00016438,2]
[327346984,1716003042015,-500.0,0.00016438,2]
[327346985,1716003042025,-501.6085611,0.00016438,2]
[327346986,1716003042035,-509.02999421,0.00016438,2]
[327346987,1716003042045,-500.0,0.00016438,2]
[327346988,1716003042054,-510.85934954,0.00016438,2]
[327346989,1716003042063,-500.0,0.00016438,2]
[327346990,1716003042074,-500.0,0.00016438,2]
[327346991,1716003042084,-506.53639279,0.00016438,2]
[327346992,1716003042094,-2310.72,0.00016438,2]
[327346993,1716003042104,-500.0,0.00016438,2]
[327346994,1716003042114,-500.0,0.00016438,2]
[327346995,1716003042124,-500.0,0.00016438,2]
[327346996,1716003042133,-500.0,0.00016438,2]
[327346997,1716003042142,-504.86585326,0.00016438,2]
[327346998,1716003042151,-500.0,0.00016438,2]
[327346999,1716003042160,-506.23635785,0.00016438,2]
[327347000,1716003042169,-504.45858188,0.00016438,2]
[327347001,1716003042179,-500.0,0.00016438,2]
[327347002,1716003042188,-700.18,0.00016438,2]
[327347003,1716003042198,-700.18,0.00016438,2]
[327347004,1716003042209,-700.18,0.00016438,2]
[327347005,1716003042219,-700.18,0.00016438,2]
[327347006,1716003042231,-500.0,0.00016438,2]
[327347007,1716003042240,-500.0,0.00016438,2]
[327347008,1716003042250,-700.18,0.00016438,2]
[327347009,1716003042260,-504.02903503,0.00016438,2]
[327347010,1716003042270,-504.3690316,0.00016438,2]
[327347011,1716003042280,-5652.97,0.00016438,2]
[327347012,1716003042290,-500.0,0.00016438,2]
[327347013,1716003042300,-3648.35,0.00016438,2]
[327347014,1716003042310,-502.63030316,0.00016438,2]
[327347015,1716003042320,-24540.07,0.00016438,2]
[327347016,1716003042330,-504.26717806,0.00016438,2]
[327347017,1716003042340,-502.08295869,0.00016438,2]
[327347018,1716003042350,-357.51374573,0.00016438,2]
[327347019,1716003042362,-538.39920543,0.00016438,2]
[327347020,1716003042371,-500.19544877,0.00016438,2]
[327347021,1716003042381,-590.62528277,0.00016438,2]
[327347022,1716003042391,-503.90597654,0.00016438,2]
[327347023,1716003042401,-503.42853297,0.00016438,2]
[327347024,1716003042411,-500.0,0.00016438,2]
[327347025,1716003042420,-500.0,0.00016438,2]
[327347026,1716003042430,-500.0,0.00016438,2]
[327347027,1716003042439,-500.0,0.00016438,2]
[327347028,1716003042449,-500.0,0.00016438,2]
[327347029,1716003042459,-501.20631385,0.00016438,2]
[327347030,1716003042469,-500.0,0.00016438,2]
[327347031,1716003042480,-501.04863178,0.00016438,2]
[327347032,1716003042492,-500.79516664,0.00016438,2]
[327347033,1716003042502,-537.30098241,0.00016438,2]
[327347034,1716003042512,-500.0,0.00016438,2]
[327347035,1716003042522,-500.0,0.00016438,2]
[327347036,1716003042534,-500.0,0.00016438,2]
[327347037,1716003042543,-501.98348784,0.00016438,2]
[327347038,1716003042554,-500.0,0.00016438,2]
[327347039,1716003042567,-501.00130243,0.00016438,2]
[327347040,1716003042577,-1213.37,0.00016438,2]
[327347041,1716003042586,-3084.82,0.00016438,2]
[327347042,1716003042596,-646.94021299,0.00016438,2]
[327347043,1716003042606,-500.0,0.00016438,2]
[327347044,1716003042615,-500.0,0.00016438,2]
[327347045,1716003042625,-506.10049472,0.00016438,2]
[327347046,1716003042635,-1001.84547682,0.00016438,2]
[327347047,1716003042644,-299.40876376,0.00016438,2]
[327347048,1716003042655,-500.0,0.00016438,2]
[327347049,1716003042665,-500.0,0.00016438,2]
[327347050,1716003042675,-503.53087562,0.00016438,2]
[327347051,1716003042684,-500.0,0.00016438,2]
[327347052,1716003042694,-246.97972244,0.00016438,2]
[327347053,1716003042704,-503.17044641,0.00016438,2]
[327347054,1716003042714,-776.57,0.00016438,2]
[327347055,1716003042724,-500.0,0.00016438,2]
[327347056,1716003042734,-503.94273132,0.00016438,2]
[327347057,1716003042744,-501.65535195,0.00016438,2]
[327347058,1716003042754,-500.0,0.00016438,2]
[327347059,1716003042764,-500.0,0.00016438,2]
[327347060,1716003042774,-500.0,0.00016438,2]
[327347061,1716003042783,-500.0,0.00016438,2]
[327347062,1716003042792,-500.0,0.00016438,2]
[327347063,1716003042802,-500.0,0.00016438,2]
[327347064,1716003042811,-501.18967635,0.00016438,2]
[327347065,1716003042820,-500.0,0.00016438,2]
[327347066,1716003042830,-502.7989633,0.00016438,2]
[327347067,1716003042839,-501.2323505,0.00016438,2]
[327347068,1716003042848,-501.58162823,0.00016438,2]
[327347069,1716003042858,-500.0,0.00016438,2]
[327347070,1716003042868,-501.80590417,0.00016438,2]
[327347071,1716003042878,-500.0,0.00016438,2]
[327347072,1716003042887,-502.61595629,0.00016438,2]
[327347073,1716003042896,-500.0,0.00016438,2]
[327347074,1716003042905,-500.0,0.00016438,2]
[327347075,1716003042915,-501.10910641,0.00016438,2]
[327347076,1716003042924,-610.67,0.00016438,2]
[327347077,1716003042934,-500.0,0.00016438,2]
[327347078,1716003042943,-500.0,0.00016438,2]
[327347079,1716003042953,-500.0,0.00016438,2]
[327347080,1716003042963,-500.99087849,0.00016438,2]
[327347081,1716003042972,-500.0,0.00016438,2]
[327347082,1716003042983,-502.13088383,0.00016438,2]
[327347083,1716003042993,-500.0,0.00016438,2]
[327347084,1716003043002,-503.70904018,0.00016438,2]
[327347085,1716003043012,-500.0,0.00016438,2]
[327347086,1716003043021,-500.0,0.00016438,2]
[327347087,1716003043031,-504.44179032,0.00016438,2]
[327347088,1716003043041,-500.0,0.00016438,2]
[327347089,1716003043050,-500.0,0.00016438,2]
[327347090,1716003043060,-502.05036398,0.00016438,2]
[327347091,1716003043069,-501.61604106,0.00016438,2]
[327347092,1716003043079,-1074.9,0.00016438,2]
[327347093,1716003043088,-500.0,0.00016438,2]
[327347094,1716003043098,-653.87,0.00016438,2]
[327347095,1716003043108,-500.0,0.00016438,2]
[327347096,1716003043118,-500.0,0.00016438,2]
[327347097,1716003043127,-510.5525724,0.00016438,2]
[327347098,1716003043137,-500.0,0.00016438,2]
[327347099,1716003043147,-500.0,0.00016438,2]
[327347100,1716003043157,-500.0,0.00016438,2]
[327347101,1716003043167,-414.87102176,0.00016438,2]
[327347102,1716003043177,-5278.11,0.00016438,2]
[327347103,1716003043186,-501.56839334,0.00016438,2]
[327347104,1716003043196,-501.17893466,0.00016438,2]
[327347105,1716003043206,-534.11558995,0.00016438,2]
[327347106,1716003043215,-527.05136394,0.00016448,2]
[327347107,1716003043226,-700.18,0.00016448,2]
[327347108,1716003043236,-500.0,0.00016448,2]
[327347109,1716003043246,-503.81819159,0.00016448,2]
[327347110,1716003043256,-640.16,0.00016499,2]
[327347111,1716003043267,-12703.0,0.000165,2]
[327347113,1716003043277,-239.60631677,0.000165,2]
[327347115,1716003043288,-454.05214749,0.00016512,2]
[327347117,1716003043299,-461.87848018,0.00016544,2]
[327347119,1716003043309,-460.9,0.00016547,2]
[327347121,1716003043319,-640.16,0.00016611,2]
[327347123,1716003043329,-640.16,0.00016611,2]
[327347125,1716003043340,-640.16,0.00016611,2]
[327347126,1716003043349,-700.18,0.00016611,2]
[327347127,1716003043359,-500.0,0.00016611,2]
[327347128,1716003043369,-23408.03411016,0.00016612,3]
[327347129,1716003043378,-151.0,0.00016612,2]
[327347130,1716003043387,-151.0,0.00016612,2]
[327347131,1716003043397,-151.0,0.00016612,2]
[327347132,1716003043407,-151.0,0.00016612,2]
[327347133,1716003043416,-151.0,0.00016612,2]
[327347134,1716003043426,-151.0,0.00016612,2]
[327347135,1716003043436,-680.914122,0.00016612,2]
[327347136,1716003043446,-151.0,0.00016612,2]
[327347137,1716003043457,-742.404816,0.00016612,2]
[327347138,1716003043467,-680.914122,0.00016612,2]
[327347139,1716003043477,-742.404816,0.00016612,2]
[327347140,1716003043489,-151.0,0.00016612,2]
[327347141,1716003043500,-1311.521307,0.00016612,2]
[327347142,1716003043509,-1311.521307,0.00016612,2]
[327347143,1716003043518,-214.177172,0.00016612,2]
[327347144,1716003043528,-151.0,0.00016612,2]
[327347145,1716003043537,-151.0,0.00016612,2]
[327347146,1716003043548,-151.0,0.00016612,2]
[327347147,1716003043557,-151.0,0.00016612,2]
[327347148,1716003043569,-177.35564,0.00016612,2]
[327347149,1716003043579,-177.35564,0.00016612,2]
[327347150,1716003043588,-438.827202,0.00016612,2]
[327347151,1716003043597,-438.827202,0.00016612,2]
[327347152,1716003043606,-151.0,0.00016612,2]
[327347153,1716003043616,-230.495479,0.00016612,2]
[327347154,1716003043625,-151.0,0.00016612,2]
[327347155,1716003043635,-151.0,0.00016612,2]
[327347156,1716003043644,-166.773211,0.00016612,2]
[327347157,1716003043653,-166.773211,0.00016612,2]
[327347158,1716003043664,-443.969272,0.00016612,2]
[327347159,1716003043673,-443.969272,0.00016612,2]
[327347160,1716003043683,-151.0,0.00016612,2]
[327347161,1716003043693,-154.406351,0.00016612,2]
[327347162,1716003043703,-283.098274,0.00016612,2]
[327347163,1716003043712,-151.0,0.00016612,2]
[327347164,1716003043722,-1199.642145,0.00016612,2]
[327347165,1716003043731,-1199.642145,0.00016612,2]
[327347166,1716003043740,-979.769603,0.00016612,2]
[327347167,1716003043750,-979.769603,0.00016612,2]
[327347168,1716003043759,-151.0,0.00016612,2]
[327347169,1716003043770,-151.0,0.00016612,2]
[327347170,1716003043779,-976.643967,0.00016612,2]
[327347173,1716003043789,-976.643967,0.00016612,2]
[327347175,1716003043799,-3027.685831,0.00016612,2]
[327347176,1716003043810,-151.0,0.00016612,2]
[327347177,1716003043819,-3027.685831,0.00016612,2]
[327347178,1716003043829,-248.338924,0.00016612,2]
[327347179,1716003043839,-248.338924,0.00016612,2]